fUSD/lending_fUSD_20251211
["ID","MTS","AMOUNT","RATE_DAILY","PERIOD"]
[398247635,1765458639892,-10279.88414971,0.00015844,2]
[398247636,1765458639904,-19138.23941,0.00015844,2]
[398247637,1765458639918,-2987.2,0.00015844,2]
[398247638,1765458640056,-912.4413632,0.00015844,2]
[398247641,1765458642846,-297.86732159,0.00015844,2]
[398247644,1765458643015,-1260.40202571,0.00015844,2]
[398247645,1765458643026,-403.92,0.00015844,2]
[398247646,1765458643074,-402615.1764159,0.00015844,2]
[398247647,1765458643291,-443.4506406,0.00015844,2]
[398247648,1765458643304,-534.187,0.00015844,2]
[398247649,1765458643318,-490.0,0.00015844,2]
[398247655,1765458646143,-343.53915486,0.00015844,2]
[398247657,1765458659892,1452.31610305,0.00015744,2]
[398247658,1765458659921,10000.01,0.00015744,2]
[398247659,1765458660211,10000.01,0.00015744,2]
[398247660,1765458660247,10000.01,0.00015744,2]
[398247661,1765458660281,10000.01,0.00015744,2]
[398247662,1765458660314,10000.01,0.00015744,2]
[398247663,1765458660347,10000.01,0.00015744,2]
[398247664,1765458660380,10000.01,0.00015744,2]
[398247665,1765458660415,10000.01,0.00015744,2]
[398247666,1765458660444,10000.01,0.00015744,2]
[398247667,1765458661272,-383.97099075,0.00015744,2]
[398247668,1765458674515,-7498.75101904,0.00015744,2]
[398247669,1765458674646,-10000.01,0.00015744,2]
[398247670,1765458680478,-231.02384457,0.00015695,2]
[398247671,1765458680516,-9537.96231086,0.00015744,2]
[398247673,1765458680610,-10000.01,0.00015744,2]
[398247674,1765458680723,-10000.01,0.00015744,2]
[398247675,1765458680860,-10000.01,0.00015744,2]
[398247676,1765458680975,-10000.01,0.00015744,2]
[398247677,1765458681137,-10000.01,0.00015744,2]
[398247678,1765458681323,-10000.01,0.00015744,2]
[398247679,1765458681482,-10000.01,0.00015744,2]
[398247680,1765458684222,-10000.01,0.00015744,2]
[398247681,1765458684333,-10000.01,0.00015744,2]
[398247682,1765458690915,-500.0,0.00015711,3]
[398247683,1765458690957,-9000.01,0.00015744,2]
[398247684,1765458691153,-10000.01,0.00015744,2]
[398247685,1765458691283,-10000.01,0.00015744,2]
[398247686,1765458691401,-10000.01,0.00015744,2]
[398247687,1765458703512,-2454.177,0.00015429,2]
[398247688,1765458703547,-170.359,0.00015429,2]
[398247689,1765458703594,-4750.938,0.00015744,2]
[398247690,1765458703614,-10000.01,0.00015744,2]
[398247692,1765458825223,-4724.13211,0.00015514,2]
[398247693,1765458825249,-551.74578,0.00015514,2]
[398247694,1765458834318,-200.0,0.00015592,2]
[398247695,1765458834348,-3512.24889864,0.00015644,2]
[398247696,1765458834386,-2575.51220272,0.00015644,2]
[398247710,1765458848080,-280.55938112,0.00015644,2]
[398247711,1765458850220,-239.69996494,0.00015644,2]
[398247721,1765458852745,-165.94299404,0.00015644,2]
[398247722,1765458863241,-150.0,0.00015557,2]
[398247723,1765458863264,-302.97834523,0.00015644,2]
[398247744,1765458893723,-281.2726,0.00015565,2]
[398247755,1765458909193,-229.71451802,0.00015565,2]
[398247756,1765458913123,-209.52805344,0.00015565,2]
[398247757,1765458915269,-382.83897228,0.00015565,2]
[398247766,1765458917851,-567.89571326,0.00015565,2]
[398247768,1765458921746,-260.07639884,0.00015565,2]
[398247769,1765458924344,-240.95116822,0.00015565,2]
[398247770,1765458926531,-328.16104454,0.00015565,2]
[398247777,1765458929175,-200.57287394,0.00015565,2]
[398247778,1765458931274,-367.7840324,0.00015565,2]
[398247827,1765458943859,280.5594,0.00015492,2]
[398247829,1765458944586,-74.04722506,0.00015565,2]
[398247830,1765458944616,-18.7274,0.00015565,2]
[398247831,1765458944640,-102.22537494,0.00015644,2]
[398247833,1765458946172,-419.67422565,0.00015644,2]
[398247834,1765458947721,-263.98555681,0.00015644,2]
[398247846,1765458950387,-225.49571883,0.00015644,2]
[398247856,1765458952945,-426.03308971,0.00015644,2]
[398247886,1765458968100,-129.73973448,0.00015644,2]
[398247887,1765458968124,-28.89572613,0.00015644,2]
[398247895,1765458983509,-174.0749837,0.00015643,2]
[398247896,1765458983533,-65.24206188,0.00015644,2]
[398247897,1765459028129,-155.86221199,0.00015644,2]
[398247898,1765459028152,-37.28322297,0.00015644,2]
[398247899,1765459029730,-178.48883473,0.00015644,2]
[398247900,1765459029798,250.0,0.0001551,2]
[398247901,1765459031790,-121.51116527,0.00015644,2]
[398247902,1765459031814,-107.10539445,0.00015644,2]
[398247903,1765459033216,158.71,0.00015513,2]
[398247904,1765459033865,-50.61138258,0.00015644,2]
[398247905,1765459033890,-10.81931467,0.00015644,2]
[398247906,1765459033916,-227.10461721,0.00015644,2]
[398247907,1765459036989,-247.53843764,0.00015644,2]
[398247908,1765459038575,-151.7580444,0.00015644,2]
[398247909,1765459040718,-288.32770075,0.00015644,2]
[398247910,1765459040743,-1.30144233,0.00015644,2]
[398247911,1765459042275,-247.67156374,0.00015644,2]
[398247912,1765459045314,-187.24405606,0.00015644,2]
[398247913,1765459048594,-312.75093653,0.00015644,2]
[398247914,1765459051246,-219.44061888,0.00015644,2]
[398247915,1765459052703,-289.83671787,0.00015644,2]
[398247916,1765459054320,-215.94235742,0.00015644,2]
[398247917,1765459055762,-209.76780668,0.00015644,2]
[398247918,1765459057490,-310.1125286,0.00015644,2]
[398247919,1765459061478,-263.46924619,0.00015644,2]
[398247920,1765459088076,-242.4627257,0.00015644,2]
[398247921,1765459088104,-57.44606438,0.00015656,2]
[398247922,1765459103085,-371.97342857,0.00015518,2]
[398247923,1765459105301,-197.7872548,0.00015518,2]
[398247924,1765459107358,-180.68591237,0.00015518,2]
[398247925,1765459110341,-180.64886714,0.00015518,2]
[398247926,1765459112897,-267.29421302,0.00015518,2]
[398247927,1765459114701,219.4406,0.00015492,2]
[398247928,1765459115127,-152.78513759,0.00015518,2]
[398247929,1765459117299,-628.67620888,0.00015518,2]
[398247930,1765459121328,-246.13558361,0.00015518,2]
[398247931,1765459123122,-331.51001403,0.00015518,2]
[398247932,1765459127077,-301.9265699,0.00015518,2]
[398247933,1765459128588,-199.1397805,0.00015518,2]
[398247934,1765459131209,-235.26532127,0.00015518,2]
[398247935,1765459133005,561.15,0.00013699,2]
[398247936,1765459135096,-8530.15,0.00015518,2]
[398247937,1765459135273,-4605.96829168,0.00015518,2]
[398247938,1765459135296,-788.07341664,0.00015518,2]
[398247939,1765459135908,-155.66375929,0.00015644,2]
[398247940,1765459137358,-489.75852748,0.00015644,2]
[398247941,1765459138922,-268.6905862,0.00015644,2]
[398247942,1765459141170,-648.06580512,0.00015644,2]
[398247943,1765459143455,-169.10002417,0.00015643,2]
[398247944,1765459145484,-130.89997583,0.00015643,2]
[398247945,1765459145508,-182.65867697,0.00015644,2]
[398247946,1765459149111,-209.68035695,0.00015644,2]
[398247947,1765459150703,-1101.84078485,0.00015644,2]
[398247948,1765459152982,-214.97346573,0.00015644,2]
[398247949,1765459154565,-261.63898327,0.00015644,2]
[398247950,1765459156418,-300.0,0.00015644,2]
[398247951,1765459158568,-230.23758203,0.00015644,2]
[398247952,1765459208184,-270.9250163,0.00015564,2]
[398247953,1765459210916,-187.95633546,0.00015564,2]
[398247954,1765459212522,-164.11950275,0.00015564,2]
[398247955,1765459214722,-244.32582589,0.00015564,2]
[398247956,1765459220498,2751.0,0.00014997,2]
[398247957,1765459283078,-187.87667047,0.00015564,2]
[398247958,1765459285760,-167.41834824,0.00015564,2]
[398247959,1765459332921,-269.61038229,0.00015564,2]
[398247960,1765459332947,-117.38961771,0.00015643,2]
[398247965,1765459403100,-300.0,0.00015581,2]
[398247966,1765459403122,-81.73371164,0.00015588,2]
[398247967,1765459406365,-195.01700712,0.00015588,2]
[398247968,1765459407894,-23.24928124,0.00015588,2]
[398247969,1765459407923,-226.75071876,0.00015594,2]
[398247970,1765459410615,-73.24928124,0.00015594,2]
[398247971,1765459410638,-148.32450115,0.000156,2]
[398247972,1765459414454,-151.67549885,0.000156,2]
[398247973,1765459414478,-190.82813774,0.00015604,2]
[398247974,1765459416608,-109.17186226,0.00015604,2]
[398247975,1765459416630,-232.76978612,0.00015607,2]
[398247976,1765459435418,166.66,0.00015139,2]
[398247977,1765459438328,-67.23021388,0.00015607,2]
[398247978,1765459439130,-195.0,0.00015613,2]
[398247979,1765459440593,-105.0,0.00015613,2]
[398247980,1765459440616,-300.0,0.00015615,2]
[398247981,1765459440637,-94.20056182,0.00015617,2]
[398247982,1765459443919,-170.58861104,0.00015617,2]
[398247983,1765459446013,-35.21082714,0.00015617,2]
[398247984,1765459446036,-178.89710847,0.00015624,2]
[398247985,1765459447533,-300.0,0.00015621,2]
[398247986,1765459447556,-121.10289153,0.00015624,2]
[398247987,1765459447579,-126.7471083,0.00015629,2]
[398247988,1765459450779,-205.15191396,0.00015629,2]
[398247989,1765459450806,-158.0,0.00015642,2]
[398247990,1765459450828,-117.50687289,0.00015643,2]
[398247991,1765459453643,166.66,0.00013973,2]
[398247992,1765459453868,166.66,0.00014267,2]
[398247993,1765459453973,-65.1035094,0.00015643,2]
[398247994,1765459453996,-108.87403983,0.00015643,2]
[398247995,1765459454064,166.66,0.00014561,2]
[398247996,1765459454266,166.66,0.00014855,2]
[398247997,1765459454463,166.66,0.00015149,2]
[398247998,1765459454676,166.66,0.00015444,2]
[398247999,1765459455642,-243.04128463,0.00015643,2]
[398248000,1765459456346,212.36686482,0.00015347,2]
[398248001,1765459457254,-255.62028926,0.00015643,2]
[398248002,1765459459879,-255.54462851,0.00015643,2]
[398248003,1765459553530,8653.22270742,0.000129,2]
[398248004,1765459553558,10000.01,0.000129,2]
[398248005,1765459553585,10000.01,0.000129,2]
[398248006,1765459553611,10000.01,0.000129,2]
[398248007,1765459553636,10000.01,0.000129,2]
[398248008,1765459553662,10000.01,0.000129,2]
[398248009,1765459553687,10000.01,0.000129,2]
[398248010,1765459553712,10000.01,0.000129,2]
[398248011,1765459553737,10000.01,0.000129,2]
[398248012,1765459553996,10000.01,0.000129,2]
[398248013,1765459554025,22403.10977575,0.000129,2]
[398248015,1765459574457,3403.57,0.00014714,2]
[398248017,1765459581606,452.96245678,0.00015607,120]
[398248018,1765459582098,1600.0,0.00014714,2]
[398248019,1765459597568,502.0,0.00015607,2]
[398248025,1765459718972,4494.44,0.00015,2]
[398248026,1765459718996,225.23262718,0.00015,2]
[398248027,1765459723084,160.29,0.0001506,2]
[398248028,1765459741500,1000.0,0.00015606,3]
[398248029,1765459746828,-1411.0,0.00015635,2]
[398248030,1765459746857,-300.0,0.00015635,2]
[398248031,1765459746886,-195.0,0.00015638,2]
[398248032,1765459746915,-1200.0,0.00015642,2]
[398248033,1765459746945,-300.0,0.00015642,2]
[398248034,1765459746979,-300.0,0.00015643,2]
[398248035,1765459747009,-300.0,0.00015643,2]
[398248036,1765459747038,-788.01,0.00015643,2]
[398248037,1765459747301,-411.99,0.00015643,2]
[398248038,1765459747332,-284.04104807,0.00015643,2]
[398248039,1765459747362,-617.62836662,0.00015643,2]
[398248040,1765459747398,-500.0,0.00015643,2]
[398248041,1765459747436,-470.74752866,0.00015643,2]
[398248042,1765459747466,-211.01068116,0.00015644,2]
[398248043,1765459747496,-300.0,0.00015644,2]
[398248044,1765459747526,-1000.0,0.00015644,2]
[398248045,1765459747556,-402.60985098,0.00015644,2]
[398248046,1765459747799,-1603.95504902,0.00015644,2]
[398248047,1765459753894,-4705.96275156,0.00015644,2]
[398248048,1765459754035,-10000.01,0.00015644,2]
[398248049,1765459754147,-10000.01,0.00015644,2]
[398248050,1765459754276,-10000.01,0.00015644,2]
[398248051,1765459759017,-10000.01,0.00015644,2]
[398248052,1765459759122,-10000.01,0.00015644,2]
[398248053,1765459759247,-10000.01,0.00015644,2]
[398248054,1765459759399,-10000.01,0.00015644,2]
[398248055,1765459759530,-10000.01,0.00015644,2]
[398248056,1765459759665,-10000.01,0.00015644,2]
[398248057,1765459769564,-1000.0,0.00015643,2]
[398248058,1765459769606,-8000.01,0.00015644,2]
[398248059,1765459769693,-10000.01,0.00015644,2]
[398248060,1765459769810,-10000.01,0.00015644,2]
[398248061,1765459775532,-10000.01,0.00015644,2]
[398248062,1765459775658,-10000.01,0.00015644,2]
[398248063,1765459775778,-10000.01,0.00015644,2]
[398248064,1765459778438,176.26514262,0.00012,2]
[398248065,1765459779613,-10000.01,0.00015644,2]
[398248066,1765459779812,-10000.01,0.00015644,2]
[398248067,1765459779931,-10000.01,0.00015644,2]
[398248068,1765459783563,-10000.01,0.00015644,2]
[398248069,1765459783578,-10000.01,0.00015644,2]
[398248070,1765459786720,-10000.01,0.00015644,2]
[398248071,1765459786866,-10000.01,0.00015644,2]
[398248072,1765459786983,-10000.01,0.00015644,2]
[398248087,1765459831826,-1966.21422563,0.00015544,2]
[398248088,1765459831836,-195.0,0.00015638,2]
[398248089,1765459831846,-300.0,0.00015642,2]
[398248090,1765459831856,-1200.0,0.00015642,2]
[398248091,1765459831865,-300.0,0.00015642,2]
[398248092,1765459831875,-300.0,0.00015642,2]
[398248093,1765459831885,-300.0,0.00015643,2]
[398248094,1765459831895,-1000.0,0.00015643,2]
[398248095,1765459831904,-180.6337018,0.00015643,2]
[398248096,1765459831914,-500.0,0.00015643,2]
[398248097,1765459831924,-500.0,0.00015643,2]
[398248098,1765459831934,-500.0,0.00015643,2]
[398248099,1765459831943,-500.0,0.00015643,2]
[398248100,1765459831953,-263.8669951,0.00015643,2]
[398248101,1765459831962,-290550.50287347,0.00015644,2]
[398248102,1765459831973,-17750.24363314,0.00015644,2]
[398248103,1765459832000,-871.98025582,0.00015644,2]
[398248104,1765459832011,-824.45059083,0.00015644,2]
[398248105,1765459832022,-7631.69981,0.00015644,2]
[398248106,1765459832060,-524.45373049,0.00015644,2]
[398248107,1765459832071,-4498.31984365,0.00015644,2]
[398248108,1765459832120,-1100.0,0.00015644,2]
[398248116,1765459837925,-0.05851889,0.00015644,2]
[398248117,1765459837961,-797.15215664,0.00015644,2]
[398248118,1765459838077,-105017.03311412,0.00015644,2]
[398248120,1765459841222,-1.7e-07,0.00015644,2]
[398248121,1765459842407,-1802.5824217,0.00015644,2]
[398248122,1765459842420,-1008.2544015,0.00015644,2]
[398248126,1765459843335,-340.981756,0.00015644,2]
[398248138,1765459846277,-15253.03163178,0.00015644,2]
[398248139,1765459846288,-500.0,0.00015644,2]
[398248146,1765459879858,-450.0,0.00015564,2]
[398248147,1765459906551,-4458.397967,0.00015564,2]
[398248148,1765459906585,-300.0,0.00015643,2]
[398248149,1765459906620,-203.72431352,0.00015643,2]
[398248150,1765459906681,-75.76543896,0.00015643,2]
[398248151,1765459906797,-500.0,0.00015643,2]
[398248152,1765459906831,-500.0,0.00015643,2]
[398248153,1765459906864,-500.0,0.00015643,2]
[398248154,1765459906897,-500.0,0.00015643,2]
[398248155,1765459906931,-500.0,0.00015643,2]
[398248156,1765459906964,-500.0,0.00015643,2]
[398248157,1765459906998,-500.0,0.00015643,2]
[398248158,1765459907032,-500.0,0.00015643,2]
[398248159,1765459907066,-500.0,0.00015643,2]
[398248160,1765459907099,-500.0,0.00015643,2]
[398248161,1765459907218,-500.0,0.00015643,2]
[398248162,1765459907255,-500.0,0.00015643,2]
[398248163,1765459907289,-500.0,0.00015643,2]
[398248164,1765459907324,-500.0,0.00015643,2]
[398248165,1765459907358,-500.0,0.00015643,2]
[398248166,1765459907392,-500.0,0.00015643,2]
[398248167,1765459907430,-500.0,0.00015643,2]
[398248168,1765459907466,-500.0,0.00015643,2]
[398248169,1765459907501,-500.0,0.00015643,2]
[398248170,1765459907534,-500.0,0.00015643,2]
[398248171,1765459907640,-500.0,0.00015643,2]
[398248172,1765459907675,-500.0,0.00015643,2]
[398248173,1765459907705,-625.15337706,0.00015643,2]
[398248174,1765459907738,-500.0,0.00015643,2]
[398248175,1765459907772,-500.0,0.00015643,2]
[398248176,1765459907804,-500.0,0.00015643,2]
[398248177,1765459907838,-500.0,0.00015643,2]
[398248178,1765459907871,-500.0,0.00015643,2]
[398248179,1765459907906,-500.0,0.00015643,2]
[398248180,1765459907940,-249.70324588,0.00015643,2]
[398248181,1765459908037,-250.29675412,0.00015643,2]
[398248182,1765459908141,-500.0,0.00015643,2]
[398248183,1765459908984,-500.0,0.00015643,2]
[398248184,1765459908993,-8749.73324588,0.00015644,2]
[398248185,1765459909010,-500.0,0.00015644,2]
[398248186,1765459909034,-500.0,0.00015643,2]
[398248187,1765459909044,-8500.01,0.00015644,2]
[398248188,1765459909060,-10000.01,0.00015644,2]
[398248189,1765459909079,-10000.01,0.00015644,2]
[398248190,1765459910997,-500.0,0.00015643,2]
[398248191,1765459911029,-500.0,0.00015643,2]
[398248192,1765459911062,-500.0,0.00015643,2]
[398248193,1765459911097,-500.0,0.00015643,2]
[398248194,1765459911130,-500.0,0.00015643,2]
[398248195,1765459911162,-500.0,0.00015643,2]
[398248196,1765459911284,-4000.01,0.00015644,2]
[398248197,1765459911299,-10000.01,0.00015644,2]
[398248198,1765459911324,-10000.01,0.00015644,2]
[398248199,1765459911554,-10000.01,0.00015644,2]
[398248200,1765459911747,-2926.75073564,0.00015644,2]
[398248201,1765459911771,-4146.50852872,0.00015644,2]
[398248212,1765459983095,250.0,0.00015,2]
[398248223,1765460048761,-284.35065016,0.00015221,2]
[398248224,1765460048792,-500.0,0.00015535,2]
[398248225,1765460048824,-1200.0,0.00015543,2]
[398248226,1765460048855,-196.51230561,0.00015544,2]
[398248227,1765460048949,-5638.28408846,0.00015544,2]
[398248228,1765460050477,-10000.01,0.00015544,2]
[398248229,1765460051053,-3365.44621154,0.00015544,2]
[398248230,1765460051084,-1000.0,0.00015544,2]
[398248231,1765460051141,-1269.11757692,0.00015544,2]
[398248232,1765460051502,-10000.01,0.00015544,2]
[398248233,1765460051999,-10000.01,0.00015544,2]
[398248234,1765460052395,-10000.01,0.00015544,2]
[398248235,1765460053135,-10000.01,0.00015544,2]
[398248236,1765460053832,-10000.01,0.00015544,2]
[398248237,1765460054066,-10000.01,0.00015544,2]
[398248238,1765460057234,-10000.01,0.00015544,2]
[398248239,1765460070571,-10000.01,0.00015544,2]
[398248240,1765460070759,-10000.01,0.00015544,2]
[398248241,1765460070962,-10000.01,0.00015544,2]
[398248242,1765460071095,-10000.01,0.00015544,2]
[398248243,1765460071273,-10000.01,0.00015544,2]
[398248244,1765460071448,-10000.01,0.00015544,2]
[398248245,1765460071565,-10000.01,0.00015544,2]
[398248246,1765460078906,150.0,0.00014993,2]
[398248247,1765460080549,-198.82873365,0.00015543,2]
[398248248,1765460080585,-558.78344789,0.00015543,2]
[398248249,1765460080624,-500.0,0.00015543,2]
[398248250,1765460080663,-500.0,0.00015543,2]
[398248251,1765460080701,-500.0,0.00015543,2]
[398248252,1765460080739,-257.84119826,0.00015543,2]
[398248253,1765460080882,-4969.1032404,0.00015544,2]
[398248254,1765460080903,-10000.01,0.00015544,2]
[398248255,1765460083803,1543.14,0.00014966,2]
[398248256,1765460086854,-10000.01,0.00015544,2]
[398248257,1765460086969,-10000.01,0.00015544,2]
[398248261,1765460090287,-10000.01,0.00015544,2]
[398248262,1765460090541,-10000.01,0.00015544,2]
[398248263,1765460090653,-10000.01,0.00015544,2]
[398248264,1765460090790,-10000.01,0.00015544,2]
[398248265,1765460090910,-10000.01,0.00015544,2]
[398248266,1765460093411,-10000.01,0.00015544,2]
[398248267,1765460093591,-10000.01,0.00015544,2]
[398248268,1765460096621,-10000.01,0.00015544,2]
[398248269,1765460096755,-10000.01,0.00015544,2]
[398248270,1765460096869,-10000.01,0.00015544,2]
[398248271,1765460096992,-10000.01,0.00015544,2]
[398248272,1765460097167,-10000.01,0.00015544,2]
[398248273,1765460106728,-1769.53195402,0.00015475,2]
[398248274,1765460106758,-300.0,0.00015543,2]
[398248275,1765460106790,-300.0,0.00015543,2]
[398248276,1765460106820,-1200.0,0.00015543,2]
[398248278,1765460106908,-2860.94609196,0.00015544,2]
[398248279,1765460106933,-10000.01,0.00015544,2]
[398248280,1765460107032,-10000.01,0.00015544,2]
[398248281,1765460107141,553.44,0.00014992,2]
[398248283,1765460107176,-10000.01,0.00015544,2]
[398248284,1765460113516,-358.14430451,0.00015509,2]
[398248285,1765460113549,-195.0,0.00015527,2]
[398248286,1765460113608,-8893.72139098,0.00015544,2]
[398248287,1765460113668,-10000.01,0.00015544,2]
[398248288,1765460113770,-10000.01,0.00015544,2]
[398248289,1765460113906,-10000.01,0.00015544,2]
[398248290,1765460148386,-10000.01,0.00015455,2]
[398248291,1765460148646,-2868.28062101,0.00015455,2]
[398248292,1765460148682,-500.0,0.00015536,2]
[398248293,1765460148713,-183.61592928,0.00015543,2]
[398248294,1765460148784,-2896.21689942,0.00015544,2]
[398248295,1765460151787,-10000.01,0.00015544,2]
[398248296,1765460152830,250.0,0.00014772,2]
[398248299,1765460215006,-300.0,0.00015543,2]
[398248300,1765460215028,-300.0,0.00015543,2]
[398248301,1765460215049,-226.21266891,0.00015543,2]
[398248302,1765460215072,-195.0,0.00015543,2]
[398248303,1765460215098,-265.72199968,0.00015543,2]
[398248304,1765460215120,-300.0,0.00015544,2]
[398248305,1765460215146,-379110.53480032,0.00015544,2]
[398248306,1765460215167,-390.8583,0.00015555,2]
[398248307,1765460215188,-10000.01,0.00015555,2]
[398248308,1765460215210,-300.0,0.00015575,2]
[398248309,1765460215232,-426.97269879,0.00015577,2]
[398248310,1765460215254,-300.0,0.00015584,2]
[398248311,1765460215276,-300.0,0.00015598,2]
[398248312,1765460215299,-1000.0,0.00015599,2]
[398248313,1765460215325,-300.0,0.00015599,2]
[398248314,1765460215348,-300.0,0.00015616,2]
[398248315,1765460215370,-300.0,0.00015616,2]
[398248316,1765460215394,-300.0,0.00015624,2]
[398248317,1765460215417,-300.0,0.00015626,2]
[398248318,1765460215438,-300.0,0.00015628,2]
[398248319,1765460215460,-300.0,0.0001563,2]
[398248320,1765460215481,-300.0,0.00015632,2]
[398248321,1765460215503,-300.0,0.00015634,2]
[398248322,1765460215525,-151.0,0.00015636,2]
[398248323,1765460215547,-151.0,0.00015636,2]
[398248324,1765460215567,-151.0,0.00015636,2]
[398248325,1765460215589,-151.0,0.00015636,2]
[398248326,1765460215610,-200.0,0.00015636,2]
[398248327,1765460215633,-151.0,0.00015636,2]
[398248328,1765460215656,-151.0,0.00015636,2]
[398248329,1765460215680,-151.0,0.00015636,2]
[398248330,1765460215702,-1411.0,0.00015636,2]
[398248331,1765460215725,-151.0,0.00015636,2]
[398248332,1765460215747,-151.0,0.00015636,2]
[398248333,1765460215769,-151.0,0.00015636,2]
[398248334,1765460215792,-151.0,0.00015636,2]
[398248335,1765460215814,-151.0,0.00015636,2]
[398248336,1765460215837,-151.0,0.00015636,2]
[398248337,1765460215859,-151.0,0.00015636,2]
[398248338,1765460215881,-151.0,0.00015636,2]
[398248339,1765460215903,-151.0,0.00015636,2]
[398248340,1765460215925,-151.0,0.00015636,2]
[398248341,1765460215947,-151.0,0.00015636,2]
[398248342,1765460215970,-500.0,0.00015636,2]
[398248343,1765460215992,-151.0,0.00015636,2]
[398248344,1765460216015,-500.0,0.00015636,2]
[398248345,1765460216037,-151.0,0.00015636,2]
[398248346,1765460216058,-500.0,0.00015636,2]
[398248347,1765460216080,-151.0,0.00015636,2]
[398248348,1765460216102,-500.0,0.00015636,2]
[398248349,1765460216124,-500.0,0.00015636,2]
[398248350,1765460216146,-500.0,0.00015636,2]
[398248351,1765460216167,-200.0,0.00015636,2]
[398248352,1765460216189,-500.0,0.00015636,2]
[398248353,1765460216213,-500.0,0.00015636,2]
[398248354,1765460216236,-500.0,0.00015636,2]
[398248355,1765460216260,-500.0,0.00015636,2]
[398248356,1765460216283,-500.0,0.00015636,2]
[398248357,1765460216308,-500.0,0.00015636,2]
[398248358,1765460216330,-500.0,0.00015636,2]
[398248359,1765460216353,-636.50815894,0.00015636,2]
[398248360,1765460216376,-500.0,0.00015636,2]
[398248361,1765460216398,-500.0,0.00015636,2]
[398248362,1765460216420,-500.0,0.00015636,2]
[398248363,1765460216442,-500.0,0.00015636,2]
[398248364,1765460216464,-500.0,0.00015636,2]
[398248365,1765460216486,-500.0,0.00015636,2]
[398248366,1765460216509,-500.0,0.00015636,2]
[398248367,1765460216530,-500.0,0.00015636,2]
[398248368,1765460216552,-500.0,0.00015636,2]
[398248369,1765460216575,-500.0,0.00015636,2]
[398248370,1765460216597,-500.0,0.00015636,2]
[398248371,1765460216619,-500.0,0.00015636,2]
[398248372,1765460216640,-473.99709559,0.00015636,2]
[398248373,1765460216662,-500.0,0.00015636,2]
[398248374,1765460216684,-500.0,0.00015636,2]
[398248375,1765460216706,-151.0,0.00015636,2]
[398248376,1765460216727,-500.0,0.00015636,2]
[398248377,1765460216749,-151.0,0.00015636,2]
[398248378,1765460216771,-500.0,0.00015636,2]
[398248379,1765460216793,-500.0,0.00015636,2]
[398248380,1765460216815,-151.0,0.00015636,2]
[398248381,1765460216836,-151.0,0.00015636,2]
[398248382,1765460216858,-500.0,0.00015636,2]
[398248383,1765460216880,-151.0,0.00015636,2]
[398248384,1765460216903,-151.0,0.00015636,2]
[398248385,1765460216925,-151.0,0.00015636,2]
[398248386,1765460216946,-300.0,0.00015636,2]
[398248387,1765460216968,-151.0,0.00015636,2]
[398248388,1765460217164,-151.0,0.00015636,2]
[398248389,1765460217188,-151.0,0.00015636,2]
[398248390,1765460217212,-151.0,0.00015636,2]
[398248391,1765460217234,-200.0,0.00015636,2]
[398248392,1765460217257,-274.8,0.00015636,2]
[398248393,1765460217279,-300.0,0.00015637,2]
[398248394,1765460217301,-300.0,0.00015644,2]
[398248395,1765460217327,-2000.0,0.00015644,2]
[398248396,1765460217349,-200.0,0.00015644,2]
[398248397,1765460217370,-300.0,0.00015649,2]
[398248398,1765460217393,-300.0,0.00015656,2]
[398248399,1765460217415,-300.0,0.00015657,2]